[Event "*** Titled Tuesday 3|2 Blitz"]
[Site "Chess.com"]
[Date "2015.01.27"]
[Round "2"]
[White "diokletian"]
[Black "TomsKantans"]
[Result "1-0"]
[WhiteElo "2327"]
[BlackElo "2231"]
[TimeControl "180+2"]
[EndTime "11:19:24 PST"]
[Termination "diokletian won by resignation"]

1. d4 {[%clk 0:03:00]} 1... Nf6 {[%clk 0:02:58.4]} 2. c4 {[%clk 0:03:00.4]} 2...
g6 {[%clk 0:02:56.4]} 3. Nc3 {[%clk 0:03:00.5]} 3... d5 {[%clk 0:02:53.1]} 4.
Bg5 {[%clk 0:02:55.8]} 4... Ne4 {[%clk 0:02:52.9]} 5. Nxe4 {[%clk 0:02:47.9]}
5... dxe4 {[%clk 0:02:53]} 6. Qd2 {[%clk 0:02:49]} 6... Bg7 {[%clk 0:02:52.5]}
7. e3 {[%clk 0:02:49.6]} 7... c5 {[%clk 0:02:51.3]} 8. Ne2 {[%clk 0:02:50.2]}
8... Nc6 {[%clk 0:02:46.6]} 9. d5 {[%clk 0:02:50.6]} 9... Ne5 {[%clk 0:02:45.2]}
10. Nc3 {[%clk 0:02:49.4]} 10... f5 {[%clk 0:02:34.9]} 11. Be2 {[%clk
0:02:49.7]} 11... O-O {[%clk 0:02:26.4]} 12. d6 {[%clk 0:02:44.3]} 12... Qxd6
{[%clk 0:02:22.8]} 13. Nd5 {[%clk 0:02:44.4]} 13... Qe6 {[%clk 0:00:37.9]} 14.
Nc7 {[%clk 0:02:39.1]} 14... Qc6 {[%clk 0:00:38.2]} 15. Nxa8 {[%clk 0:02:38.3]}
15... Be6 {[%clk 0:00:38]} 16. Bxe7 {[%clk 0:02:18]} 16... Rxa8 {[%clk
0:00:38.4]} 17. O-O {[%clk 0:02:18.1]} 17... Nxc4 {[%clk 0:00:31.8]} 18. Bxc4
{[%clk 0:02:15.4]} 18... Bxc4 {[%clk 0:00:33.7]} 19. Rfc1 {[%clk 0:02:16.3]}
19... b5 {[%clk 0:00:31.4]} 20. a4 {[%clk 0:02:09.5]} 20... Re8 {[%clk
0:00:13.4]} 21. axb5 {[%clk 0:02:05.6]} 21... Qxb5 {[%clk 0:00:15.3]} 22. Rxa7
{[%clk 0:02:05.4]} 22... Qb6 {[%clk 0:00:07.3]} 23. Qd7 {[%clk 0:01:57.1]} 23...
Bb5 {[%clk 0:00:05.2]} 24. Qd5+ {[%clk 0:01:53.8]} 24... Kh8 {[%clk 0:00:05.2]}
25. Bxc5 {[%clk 0:01:53.8]} 25... Qb8 {[%clk 0:00:06]} 26. Bd4 {[%clk 0:01:51]}
1-0

[Event "*** Titled Tuesday 3|2 Blitz"]
[Site "Chess.com"]
[Date "2015.01.27"]
[Round "2"]
[White "wonderfultime"]
[Black "chorejason"]
[Result "1-0"]
[WhiteElo "2543"]
[BlackElo "1955"]
[TimeControl "180+2"]
[EndTime "11:19:31 PST"]
[Termination "wonderfultime won by resignation"]

1. c4 {[%clk 0:02:58.1]} 1... Nf6 {[%clk 0:02:59.1]} 2. Nc3 {[%clk 0:02:58.3]}
2... g6 {[%clk 0:03:00.6]} 3. g3 {[%clk 0:02:56.8]} 3... Bg7 {[%clk 0:03:02.5]}
4. Bg2 {[%clk 0:02:57.9]} 4... O-O {[%clk 0:03:04.4]} 5. Nf3 {[%clk 0:02:58.9]}
5... c5 {[%clk 0:03:05.7]} 6. O-O {[%clk 0:03:00.1]} 6... Nc6 {[%clk 0:03:06.3]}
7. d3 {[%clk 0:03:01.6]} 7... d6 {[%clk 0:03:07.5]} 8. Rb1 {[%clk 0:03:02.4]}
8... Bg4 {[%clk 0:02:56.6]} 9. Bd2 {[%clk 0:03:02.3]} 9... Qd7 {[%clk 0:02:57]}
10. Re1 {[%clk 0:03:02.5]} 10... Nd4 {[%clk 0:02:55.2]} 11. Nxd4 {[%clk
0:03:01]} 11... cxd4 {[%clk 0:02:56.2]} 12. Nb5 {[%clk 0:03:02]} 12... Nh5
{[%clk 0:02:39.4]} 13. b4 {[%clk 0:02:58.4]} 13... a6 {[%clk 0:02:32.2]} 14. Na3
{[%clk 0:02:59.3]} 14... f5 {[%clk 0:02:33]} 15. f3 {[%clk 0:01:53.9]} 15... f4
{[%clk 0:02:33.9]} 16. fxg4 {[%clk 0:01:53.8]} 16... fxg3 {[%clk 0:02:31.7]} 17.
gxh5 {[%clk 0:01:50.1]} 17... gxh2+ {[%clk 0:02:29.4]} 18. Kh1 {[%clk
0:01:51.2]} 18... Rf2 {[%clk 0:02:26.5]} 19. Rf1 {[%clk 0:01:52.3]} 19... Raf8
{[%clk 0:02:16.1]} 20. Bf3 {[%clk 0:01:46.3]} 20... Rxf1+ {[%clk 0:01:32.5]} 21.
Qxf1 {[%clk 0:01:48.2]} 21... g5 {[%clk 0:01:25.3]} 22. Qg2 {[%clk 0:01:48]}
22... h6 {[%clk 0:01:22.7]} 23. Rf1 {[%clk 0:01:43.8]} 23... Qa4 {[%clk
0:01:23.5]} 24. Bd5+ {[%clk 0:01:43.8]} 24... Kh8 {[%clk 0:01:20.9]} 25. Rxf8+
{[%clk 0:01:42.7]} 25... Bxf8 {[%clk 0:01:22.8]} 26. Qf1 {[%clk 0:01:42.3]}
26... Bg7 {[%clk 0:01:21.2]} 27. Bc1 {[%clk 0:01:35.1]} 27... Bf6 {[%clk
0:01:22.2]} 28. Kxh2 {[%clk 0:01:29.3]} 28... Qxb4 {[%clk 0:01:19.2]} 29. Kg2
{[%clk 0:01:30]} 29... Qc3 {[%clk 0:00:54.8]} 30. Qf5 {[%clk 0:01:26.5]} 30...
Qxc1 {[%clk 0:00:53.5]} 31. Qc8+ {[%clk 0:01:27.4]} 1-0

[Event "*** Titled Tuesday 3|2 Blitz"]
[Site "Chess.com"]
[Date "2015.01.27"]
[Round "2"]
[White "MinhGTrAn"]
[Black "Danirod"]
[Result "1/2-1/2"]
[WhiteElo "2446"]
[BlackElo "2327"]
[TimeControl "180+2"]
[EndTime "11:19:59 PST"]
[Termination "Game drawn by repetition"]

1. d4 {[%clk 0:02:58.1]} 1... Nf6 {[%clk 0:02:58.5]} 2. Bg5 {[%clk 0:02:59.1]}
2... d5 {[%clk 0:02:59.2]} 3. Bxf6 {[%clk 0:03:00.1]} 3... exf6 {[%clk
0:03:00.2]} 4. e3 {[%clk 0:03:02]} 4... c6 {[%clk 0:03:00.5]} 5. Nd2 {[%clk
0:03:03.5]} 5... Bd6 {[%clk 0:02:56.3]} 6. g3 {[%clk 0:03:04.8]} 6... Nd7 {[%clk
0:02:56.3]} 7. Bg2 {[%clk 0:03:06.3]} 7... f5 {[%clk 0:02:57.8]} 8. Ne2 {[%clk
0:03:07]} 8... Nf6 {[%clk 0:02:59]} 9. O-O {[%clk 0:03:07.8]} 9... Ne4 {[%clk
0:03:00.2]} 10. Rc1 {[%clk 0:02:35.6]} 10... Be6 {[%clk 0:02:53.1]} 11. Nf4
{[%clk 0:02:10.6]} 11... O-O {[%clk 0:02:48.5]} 12. c4 {[%clk 0:01:07.5]} 12...
Bxf4 {[%clk 0:02:45.7]} 13. cxd5 {[%clk 0:01:08.8]} 13... Nxd2 {[%clk
0:02:42.8]} 14. Qxd2 {[%clk 0:01:08.7]} 14... Bxd5 {[%clk 0:02:33.8]} 15. Bxd5
{[%clk 0:00:58.9]} 15... Qxd5 {[%clk 0:02:34]} 16. gxf4 {[%clk 0:01:00.8]} 16...
Qxa2 {[%clk 0:02:34.8]} 17. Rc5 {[%clk 0:01:00.5]} 17... g6 {[%clk 0:02:35.7]}
18. Qb4 {[%clk 0:00:58.1]} 18... Rab8 {[%clk 0:02:30.1]} 19. Ra5 {[%clk
0:00:57.6]} 19... Qe6 {[%clk 0:02:30.5]} 20. Rxa7 {[%clk 0:00:58.4]} 20... Qd5
{[%clk 0:02:14.8]} 21. Rc1 {[%clk 0:00:38.4]} 21... b6 {[%clk 0:02:07.4]} 22.
Qc4 {[%clk 0:00:34.5]} 22... Qf3 {[%clk 0:01:58.9]} 23. Qxc6 {[%clk 0:00:33.1]}
23... Qg4+ {[%clk 0:01:56.9]} 24. Qg2 {[%clk 0:00:34.1]} 24... Qe2 {[%clk
0:01:58.1]} 25. Rcc7 {[%clk 0:00:33.8]} 25... Rbc8 {[%clk 0:01:56.1]} 26. Qd5
{[%clk 0:00:23.5]} 26... Rxc7 {[%clk 0:01:52.9]} 27. Rxc7 {[%clk 0:00:25.4]}
27... Qg4+ {[%clk 0:01:42.2]} 28. Kf1 {[%clk 0:00:24.3]} 28... Qd1+ {[%clk
0:01:43.1]} 29. Kg2 {[%clk 0:00:25.7]} 29... Qg4+ {[%clk 0:01:44.7]} 30. Kf1
{[%clk 0:00:26.7]} 30... Qd1+ {[%clk 0:01:45.9]} 31. Kg2 {[%clk 0:00:27.9]}
31... Qg4+ {[%clk 0:01:46.9]} 32. Kh1 {[%clk 0:00:26.2]} 32... Qd1+ {[%clk
0:01:47]} 33. Kg2 {[%clk 0:00:21.3]} 33... Qg4+ {[%clk 0:01:47.9]} 34. Kh1
{[%clk 0:00:21.1]} 34... Qd1+ {[%clk 0:01:48.8]} 35. Kg2 {[%clk 0:00:22.1]}
35... Qg4+ {[%clk 0:01:49.8]} 36. Kf1 {[%clk 0:00:21.7]} 36... Qd1+ {[%clk
0:01:50.9]} 37. Kg2 {[%clk 0:00:22.9]} 37... Qg4+ {[%clk 0:01:52]} 1/2-1/2

[Event "*** Titled Tuesday 3|2 Blitz"]
[Site "Chess.com"]
[Date "2015.01.27"]
[Round "2"]
[White "iFrancisco"]
[Black "megarompa"]
[Result "0-1"]
[WhiteElo "2398"]
[BlackElo "2661"]
[TimeControl "180+2"]
[EndTime "11:20:00 PST"]
[Termination "megarompa won by resignation"]

1. e4 {[%clk 0:03:00]} 1... e5 {[%clk 0:02:59]} 2. Nf3 {[%clk 0:03:01.2]} 2...
Nc6 {[%clk 0:03:00.9]} 3. Bb5 {[%clk 0:03:02.8]} 3... g6 {[%clk 0:03:01.3]} 4.
c3 {[%clk 0:02:59.7]} 4... d6 {[%clk 0:03:02.1]} 5. d4 {[%clk 0:02:55.9]} 5...
Bd7 {[%clk 0:03:03.3]} 6. Ba4 {[%clk 0:02:55.4]} 6... Bg7 {[%clk 0:03:04]} 7.
O-O {[%clk 0:02:52.5]} 7... Nf6 {[%clk 0:03:05.1]} 8. Re1 {[%clk 0:02:53.4]}
8... O-O {[%clk 0:03:05.5]} 9. dxe5 {[%clk 0:02:36.4]} 9... Nxe5 {[%clk
0:03:03]} 10. Nxe5 {[%clk 0:02:36.6]} 10... Bxa4 {[%clk 0:03:01.6]} 11. Qxa4
{[%clk 0:02:13.6]} 11... dxe5 {[%clk 0:03:03.5]} 12. f3 {[%clk 0:01:57.3]} 12...
c6 {[%clk 0:03:03.4]} 13. Be3 {[%clk 0:01:58]} 13... Qc7 {[%clk 0:02:59.3]} 14.
Nd2 {[%clk 0:01:58.4]} 14... Rfd8 {[%clk 0:02:55.6]} 15. Rad1 {[%clk 0:01:59.3]}
15... a5 {[%clk 0:02:48.6]} 16. Nf1 {[%clk 0:01:51.2]} 16... b5 {[%clk 0:02:42]}
17. Qc2 {[%clk 0:01:49.8]} 17... Nd7 {[%clk 0:02:30.5]} 18. Qf2 {[%clk
0:01:43.2]} 18... Rab8 {[%clk 0:02:28.2]} 19. Rd2 {[%clk 0:01:37.3]} 19... Nf8
{[%clk 0:02:29.1]} 20. Red1 {[%clk 0:01:26.9]} 20... Rxd2 {[%clk 0:02:29.3]} 21.
Nxd2 {[%clk 0:01:27.1]} 21... Ne6 {[%clk 0:02:29.3]} 22. Nb3 {[%clk 0:01:23.1]}
22... Bf8 {[%clk 0:02:29.6]} 23. Nc5 {[%clk 0:01:20.8]} 23... Bxc5 {[%clk
0:02:29.9]} 24. Bxc5 {[%clk 0:01:21.5]} 24... Rd8 {[%clk 0:02:31.6]} 25. Rxd8+
{[%clk 0:01:02.3]} 25... Qxd8 {[%clk 0:02:33.5]} 26. h3 {[%clk 0:01:01.4]} 26...
Qd3 {[%clk 0:02:33.3]} 27. Kh2 {[%clk 0:00:59.1]} 27... h5 {[%clk 0:02:29.7]}
28. Be3 {[%clk 0:00:57.8]} 28... a4 {[%clk 0:02:22.7]} 29. Qd2 {[%clk
0:00:56.2]} 29... Qxd2 {[%clk 0:02:24]} 30. Bxd2 {[%clk 0:00:58.1]} 30... Kf8
{[%clk 0:02:25.8]} 31. Kg1 {[%clk 0:00:59]} 31... Ke7 {[%clk 0:02:26.3]} 32. Kf2
{[%clk 0:00:59.9]} 32... h4 {[%clk 0:02:24.7]} 33. Be3 {[%clk 0:01:00.5]} 33...
Kd6 {[%clk 0:02:25.4]} 34. Ke2 {[%clk 0:01:01.9]} 34... Nf4+ {[%clk 0:02:23.8]}
35. Bxf4 {[%clk 0:00:57.6]} 35... exf4 {[%clk 0:02:25.7]} 36. Kd3 {[%clk
0:00:55.3]} 36... c5 {[%clk 0:02:24.2]} 37. b3 {[%clk 0:00:56]} 37... axb3
{[%clk 0:02:11.6]} 38. axb3 {[%clk 0:00:57.9]} 38... Ke5 {[%clk 0:02:12.9]} 39.
c4 {[%clk 0:00:51.3]} 39... b4 {[%clk 0:02:11.8]} 40. Ke2 {[%clk 0:00:50.2]}
40... Kd4 {[%clk 0:02:12.7]} 41. Kd2 {[%clk 0:00:46.6]} 41... f6 {[%clk
0:02:13.4]} 0-1

[Event "*** Titled Tuesday 3|2 Blitz"]
[Site "Chess.com"]
[Date "2015.01.27"]
[Round "2"]
[White "WanderingPuppet"]
[Black "stepanosinovsky"]
[Result "1-0"]
[WhiteElo "2119"]
[BlackElo "2236"]
[TimeControl "180+2"]
[EndTime "11:20:21 PST"]
[Termination "WanderingPuppet won by checkmate"]

1. e4 {[%clk 0:03:00]} 1... e5 {[%clk 0:02:58.8]} 2. Nf3 {[%clk 0:02:57.4]} 2...
Nc6 {[%clk 0:03:00.3]} 3. Bb5 {[%clk 0:02:57.8]} 3... a6 {[%clk 0:03:01.7]} 4.
Ba4 {[%clk 0:02:58.7]} 4... Nf6 {[%clk 0:03:02]} 5. O-O {[%clk 0:02:59.6]} 5...
Be7 {[%clk 0:02:59.8]} 6. Re1 {[%clk 0:02:58.7]} 6... b5 {[%clk 0:03:00.8]} 7.
Bb3 {[%clk 0:02:59.9]} 7... O-O {[%clk 0:03:02.7]} 8. a4 {[%clk 0:02:58]} 8...
Bb7 {[%clk 0:03:02.7]} 9. Nc3 {[%clk 0:02:52.4]} 9... b4 {[%clk 0:02:34.8]} 10.
Nd5 {[%clk 0:02:51.6]} 10... Na5 {[%clk 0:02:03]} 11. Ba2 {[%clk 0:02:24.7]}
11... Nxd5 {[%clk 0:01:24.3]} 12. Bxd5 {[%clk 0:02:21.3]} 12... c6 {[%clk
0:01:17.1]} 13. Ba2 {[%clk 0:02:18.9]} 13... d6 {[%clk 0:01:16.6]} 14. d3 {[%clk
0:02:18]} 14... Qc7 {[%clk 0:01:16.2]} 15. Bd2 {[%clk 0:02:16.7]} 15... c5
{[%clk 0:01:17.3]} 16. c3 {[%clk 0:02:16.6]} 16... Nc6 {[%clk 0:01:17.3]} 17.
Rc1 {[%clk 0:02:16.6]} 17... a5 {[%clk 0:01:18.1]} 18. Bd5 {[%clk 0:02:16.7]}
18... Qb6 {[%clk 0:01:18.4]} 19. Be3 {[%clk 0:02:15.5]} 19... Kh8 {[%clk
0:01:18.4]} 20. Nd2 {[%clk 0:02:16.2]} 20... f5 {[%clk 0:01:03.4]} 21. exf5
{[%clk 0:02:08.2]} 21... Rxf5 {[%clk 0:01:03.8]} 22. Be4 {[%clk 0:02:08.8]}
22... Raf8 {[%clk 0:00:42]} 23. Qg4 {[%clk 0:02:03.8]} 23... g6 {[%clk
0:00:31.6]} 24. Bh6 {[%clk 0:01:58.8]} 24... R8f7 {[%clk 0:00:32.1]} 25. Nf3
{[%clk 0:01:48.7]} 25... bxc3 {[%clk 0:00:31.5]} 26. bxc3 {[%clk 0:01:49.2]}
26... Rh5 {[%clk 0:00:23.1]} 27. Bg5 {[%clk 0:01:34.2]} 27... Bf8 {[%clk
0:00:22.4]} 28. Qe6 {[%clk 0:01:27.4]} 28... Qc7 {[%clk 0:00:20.7]} 29. Bf6+
{[%clk 0:01:10.6]} 29... Bg7 {[%clk 0:00:20.7]} 30. Qe8+ {[%clk 0:01:10.2]}
30... Rf8 {[%clk 0:00:14.2]} 31. Qxf8# {[%clk 0:01:11.1]} 1-0

[Event "*** Titled Tuesday 3|2 Blitz"]
[Site "Chess.com"]
[Date "2015.01.27"]
[Round "2"]
[White "zmaj23"]
[Black "162a54f5d"]
[Result "0-1"]
[WhiteElo "2180"]
[BlackElo "2274"]
[TimeControl "180+2"]
[EndTime "11:20:48 PST"]
[Termination "162a54f5d won by resignation"]

1. e4 {[%clk 0:03:00]} 1... e5 {[%clk 0:02:57.8]} 2. Nc3 {[%clk 0:03:00.5]} 2...
Nf6 {[%clk 0:02:58]} 3. Bc4 {[%clk 0:03:01.6]} 3... Nc6 {[%clk 0:02:56.4]} 4. d3
{[%clk 0:03:01.4]} 4... Bc5 {[%clk 0:02:43.6]} 5. f4 {[%clk 0:03:02.3]} 5... d6
{[%clk 0:02:36.6]} 6. Nf3 {[%clk 0:03:02.4]} 6... Bg4 {[%clk 0:02:32.3]} 7. f5
{[%clk 0:02:50.6]} 7... Na5 {[%clk 0:02:26.2]} 8. h3 {[%clk 0:02:42.2]} 8...
Bxf3 {[%clk 0:02:24.4]} 9. Qxf3 {[%clk 0:02:41.3]} 9... h6 {[%clk 0:02:09.9]}
10. g4 {[%clk 0:02:34.2]} 10... Nxc4 {[%clk 0:02:05.7]} 11. dxc4 {[%clk
0:02:34.5]} 11... Qd7 {[%clk 0:02:07]} 12. h4 {[%clk 0:02:33.3]} 12... O-O-O
{[%clk 0:02:05.8]} 13. Bd2 {[%clk 0:02:22]} 13... h5 {[%clk 0:02:03.4]} 14. g5
{[%clk 0:02:20.9]} 14... Ng4 {[%clk 0:02:04.4]} 15. Nd5 {[%clk 0:01:41]} 15...
Bf2+ {[%clk 0:01:59.9]} 16. Ke2 {[%clk 0:01:37.8]} 16... a6 {[%clk 0:01:39]} 17.
a4 {[%clk 0:01:33.7]} 17... c6 {[%clk 0:01:35.2]} 18. Ne3 {[%clk 0:00:58.5]}
18... Bxe3 {[%clk 0:01:34.2]} 19. Bxe3 {[%clk 0:01:00.4]} 19... d5 {[%clk
0:01:35]} 20. cxd5 {[%clk 0:00:57.7]} 20... cxd5 {[%clk 0:01:34.6]} 21. Bb6
{[%clk 0:00:51]} 21... Qc6 {[%clk 0:01:18.9]} 22. Bxd8 {[%clk 0:00:28.2]} 22...
Qxc2+ {[%clk 0:01:18.3]} 23. Ke1 {[%clk 0:00:21.2]} 23... Rxd8 {[%clk 0:01:12]}
24. Qc3+ {[%clk 0:00:22.5]} 24... Qxc3+ {[%clk 0:01:09.6]} 25. bxc3 {[%clk
0:00:24.4]} 25... dxe4 {[%clk 0:01:10.5]} 26. Ke2 {[%clk 0:00:25]} 26... Rd3
{[%clk 0:01:11.6]} 27. Rhd1 {[%clk 0:00:22.2]} 27... Re3+ {[%clk 0:01:12.6]} 28.
Kf1 {[%clk 0:00:22.6]} 28... Rf3+ {[%clk 0:01:13.5]} 29. Kg2 {[%clk 0:00:20.8]}
29... Ne3+ {[%clk 0:01:14.5]} 30. Kg1 {[%clk 0:00:19.4]} 30... Nxd1 {[%clk
0:01:16.4]} 31. Rxd1 {[%clk 0:00:21]} 31... Rxf5 {[%clk 0:01:14.2]} 32. Rd5
{[%clk 0:00:21.8]} 32... f6 {[%clk 0:01:14.3]} 33. gxf6 {[%clk 0:00:20.3]} 33...
gxf6 {[%clk 0:01:16.2]} 34. Kg2 {[%clk 0:00:21.8]} 34... Rf4 {[%clk 0:01:16]}
35. Rd6 {[%clk 0:00:20.9]} 35... Kc7 {[%clk 0:01:17.2]} 36. Rd2 {[%clk
0:00:20.8]} 36... Rxh4 {[%clk 0:01:17.7]} 37. a5 {[%clk 0:00:21.5]} 37... Rg4+
{[%clk 0:01:16.8]} 38. Kh3 {[%clk 0:00:22.4]} 38... Rf4 {[%clk 0:01:18.1]} 39.
Re2 {[%clk 0:00:23.7]} 39... f5 {[%clk 0:01:17.9]} 40. Kg3 {[%clk 0:00:24.3]}
40... Rf3+ {[%clk 0:01:18.9]} 41. Kg2 {[%clk 0:00:25.9]} 41... Rxc3 {[%clk
0:01:20]} 0-1

[Event "*** Titled Tuesday 3|2 Blitz"]
[Site "Chess.com"]
[Date "2015.01.27"]
[Round "2"]
[White "Tilicheev_Viacheslav"]
[Black "Kacparov"]
[Result "1-0"]
[WhiteElo "2510"]
[BlackElo "2366"]
[TimeControl "180+2"]
[EndTime "11:21:13 PST"]
[Termination "Tilicheev_Viacheslav won by resignation"]

1. e4 {[%clk 0:03:00]} 1... c5 {[%clk 0:02:58.3]} 2. Nf3 {[%clk 0:03:00.7]} 2...
e6 {[%clk 0:02:59.7]} 3. b3 {[%clk 0:03:00.9]} 3... b6 {[%clk 0:02:59.4]} 4. Bb2
{[%clk 0:03:00.2]} 4... Bb7 {[%clk 0:03:00.8]} 5. e5 {[%clk 0:03:01.7]} 5... d6
{[%clk 0:02:57.8]} 6. exd6 {[%clk 0:03:02]} 6... Nf6 {[%clk 0:02:59]} 7. Na3
{[%clk 0:03:01.1]} 7... Bxd6 {[%clk 0:02:59.2]} 8. Nc4 {[%clk 0:03:02.2]} 8...
Bc7 {[%clk 0:02:59.9]} 9. Bd3 {[%clk 0:03:02]} 9... Nc6 {[%clk 0:02:59.1]} 10.
a3 {[%clk 0:03:00.9]} 10... Ne7 {[%clk 0:02:55.2]} 11. O-O {[%clk 0:03:01.4]}
11... Ng6 {[%clk 0:02:56.4]} 12. Nce5 {[%clk 0:02:39.2]} 12... O-O {[%clk
0:02:52.9]} 13. Nxg6 {[%clk 0:02:39]} 13... hxg6 {[%clk 0:02:53.6]} 14. Re1
{[%clk 0:02:24.9]} 14... Qd5 {[%clk 0:02:47.5]} 15. Bxf6 {[%clk 0:02:18.9]}
15... gxf6 {[%clk 0:02:46]} 16. Be4 {[%clk 0:02:20.1]} 16... Qxe4 {[%clk
0:02:47.2]} 17. Rxe4 {[%clk 0:02:22]} 17... Bxe4 {[%clk 0:02:48.9]} 18. d3
{[%clk 0:02:23.3]} 18... Bb7 {[%clk 0:02:46.9]} 19. Nd2 {[%clk 0:02:23]} 19...
Kg7 {[%clk 0:02:46.8]} 20. Qe2 {[%clk 0:02:19.9]} 20... Rh8 {[%clk 0:02:47]} 21.
h3 {[%clk 0:02:20.7]} 21... Rad8 {[%clk 0:02:47.1]} 22. Re1 {[%clk 0:02:21.1]}
22... Rd5 {[%clk 0:02:44.2]} 23. Ne4 {[%clk 0:02:06.5]} 23... Re5 {[%clk
0:02:42.9]} 24. Qd2 {[%clk 0:02:01.9]} 24... Rh4 {[%clk 0:02:32.8]} 25. Qc3
{[%clk 0:01:53.2]} 25... Rf5 {[%clk 0:01:40.1]} 26. f3 {[%clk 0:01:32.7]} 26...
Be5 {[%clk 0:01:38.9]} 27. Qd2 {[%clk 0:01:32.2]} 27... Bd4+ {[%clk 0:01:30.6]}
28. Kh2 {[%clk 0:01:26.2]} 28... Rd5 {[%clk 0:01:24.4]} 29. b4 {[%clk
0:01:20.2]} 29... f5 {[%clk 0:01:18.9]} 30. Ng5 {[%clk 0:01:05]} 30... Bf6
{[%clk 0:01:11.8]} 31. f4 {[%clk 0:00:36.6]} 31... Rd4 {[%clk 0:01:06.1]} 32. g3
{[%clk 0:00:32.9]} 32... Rh8 {[%clk 0:01:05.2]} 33. bxc5 {[%clk 0:00:30.7]}
33... bxc5 {[%clk 0:01:06.2]} 34. Qa5 {[%clk 0:00:22.1]} 34... c4 {[%clk
0:01:03.7]} 35. Qc7 {[%clk 0:00:22.3]} 35... Bd5 {[%clk 0:01:00.2]} 36. Qxf7+
{[%clk 0:00:20.6]} 36... Kh6 {[%clk 0:00:57.1]} 37. Qxf6 {[%clk 0:00:21.8]}
37... Rg8 {[%clk 0:00:57.7]} 38. Qf7 {[%clk 0:00:16.8]} 38... Rg7 {[%clk
0:00:57.9]} 39. Qf8 {[%clk 0:00:16.4]} 1-0

[Event "*** Titled Tuesday 3|2 Blitz"]
[Site "Chess.com"]
[Date "2015.01.27"]
[Round "2"]
[White "jbj"]
[Black "BeerLag"]
[Result "0-1"]
[WhiteElo "2239"]
[BlackElo "2208"]
[TimeControl "180+2"]
[EndTime "11:21:31 PST"]
[Termination "BeerLag won on time"]

1. Nf3 {[%clk 0:02:30.9]} 1... d5 {[%clk 0:02:58]} 2. g3 {[%clk 0:02:30.5]} 2...
Bf5 {[%clk 0:02:59.4]} 3. Bg2 {[%clk 0:02:31.8]} 3... Nf6 {[%clk 0:03:01.1]} 4.
O-O {[%clk 0:02:32.8]} 4... e6 {[%clk 0:03:01.4]} 5. d3 {[%clk 0:02:34.1]} 5...
h6 {[%clk 0:03:02.4]} 6. c3 {[%clk 0:02:35.1]} 6... c6 {[%clk 0:03:03.7]} 7.
Nbd2 {[%clk 0:02:35.5]} 7... Nbd7 {[%clk 0:03:05]} 8. Re1 {[%clk 0:02:37]} 8...
Bh7 {[%clk 0:03:06.3]} 9. a4 {[%clk 0:02:38.1]} 9... Bc5 {[%clk 0:03:07.8]} 10.
b4 {[%clk 0:02:36.7]} 10... Bb6 {[%clk 0:03:09.3]} 11. a5 {[%clk 0:02:36.7]}
11... Bc7 {[%clk 0:03:10.8]} 12. a6 {[%clk 0:02:36.2]} 12... b6 {[%clk 0:03:12]}
13. c4 {[%clk 0:02:34.7]} 13... O-O {[%clk 0:03:08.7]} 14. Bb2 {[%clk 0:02:36]}
14... Rc8 {[%clk 0:03:07.3]} 15. Qa4 {[%clk 0:02:35.9]} 15... Bd6 {[%clk
0:03:06]} 16. e4 {[%clk 0:02:31.6]} 16... dxe4 {[%clk 0:03:00.4]} 17. dxe4
{[%clk 0:02:31.5]} 17... Be7 {[%clk 0:02:59.6]} 18. e5 {[%clk 0:02:29.7]} 18...
b5 {[%clk 0:02:56.2]} 19. cxb5 {[%clk 0:02:27.9]} 19... cxb5 {[%clk 0:02:57.6]}
20. Qxb5 {[%clk 0:02:28.8]} 20... Rb8 {[%clk 0:02:55.1]} 21. Qc6 {[%clk
0:02:11.5]} 21... Rb6 {[%clk 0:02:41.5]} 22. Qc1 {[%clk 0:02:09.7]} 22... Nd5
{[%clk 0:02:40]} 23. Bd4 {[%clk 0:02:09.4]} 23... Rxb4 {[%clk 0:02:19.9]} 24.
Bxa7 {[%clk 0:02:09.3]} 24... Qa8 {[%clk 0:02:18.1]} 25. Bd4 {[%clk 0:02:07.5]}
25... Rc8 {[%clk 0:02:19.3]} 26. Qd1 {[%clk 0:02:03.5]} 26... Rc6 {[%clk
0:02:06.9]} 27. Qe2 {[%clk 0:02:00.6]} 27... g5 {[%clk 0:01:49.9]} 28. h3 {[%clk
0:01:58.7]} 28... Nc5 {[%clk 0:01:33]} 29. Bxc5 {[%clk 0:01:55.7]} 29... Bxc5
{[%clk 0:01:32.6]} 30. Rec1 {[%clk 0:01:48.2]} 30... Ba7 {[%clk 0:01:33.2]} 31.
Rxc6 {[%clk 0:01:40]} 31... Qxc6 {[%clk 0:01:35.1]} 32. Nh2 {[%clk 0:01:33.2]}
32... Rb2 {[%clk 0:01:26.9]} 33. Nhf1 {[%clk 0:01:25.3]} 33... Kg7 {[%clk
0:01:15.7]} 34. Be4 {[%clk 0:01:05.9]} 34... Bxe4 {[%clk 0:01:01.7]} 35. Qxe4
{[%clk 0:01:05.9]} 35... Qc3 {[%clk 0:01:03.3]} 36. Rd1 {[%clk 0:00:43.7]} 36...
Qc5 {[%clk 0:00:53.2]} 37. Qf3 {[%clk 0:00:41.5]} 37... Qd4 {[%clk 0:00:48.4]}
38. Qe2 {[%clk 0:00:28.5]} 38... Nc3 {[%clk 0:00:47.2]} 39. Qf3 {[%clk
0:00:07.2]} 39... Nxd1 {[%clk 0:00:47]} 40. Qf6+ {[%clk 0:00:02.2]} 40... Kg8
{[%clk 0:00:48.3]} 0-1